[Event "Late-Titled-Tuesday-Blitz-January-30-2024"]
[Site "Chess.com"]
[Date "2024.01.30"]
[Round "4"]
[White "bn1462"]
[Black "ogpin"]
[Result "0-1"]
[WhiteElo "1948"]
[BlackElo "2222"]
[TimeControl "180+1"]
[EndTime "14:37:57 PST"]
[Termination "ogpin won by checkmate"]

1. d4 {[%clk 0:03:00.9]} 1... d5 {[%clk 0:02:56.9]} 2. c4 {[%clk 0:03:00.9]}
2... e6 {[%clk 0:02:57.2]} 3. Nf3 {[%clk 0:03:00.3]} 3... Nf6 {[%clk 0:02:57.4]}
4. Nc3 {[%clk 0:03:00]} 4... Bb4 {[%clk 0:02:57.8]} 5. cxd5 {[%clk 0:02:39.5]}
5... exd5 {[%clk 0:02:57.7]} 6. Bg5 {[%clk 0:02:40.1]} 6... h6 {[%clk
0:02:57.1]} 7. Bh4 {[%clk 0:02:39.7]} 7... Nbd7 {[%clk 0:02:57.1]} 8. Qc2 {[%clk
0:02:37.2]} 8... O-O {[%clk 0:02:54]} 9. e3 {[%clk 0:02:36.1]} 9... g5 {[%clk
0:02:44.3]} 10. Bg3 {[%clk 0:02:35.9]} 10... Ne4 {[%clk 0:02:44.8]} 11. Bd3
{[%clk 0:02:31.5]} 11... Re8 {[%clk 0:02:38.5]} 12. O-O {[%clk 0:02:30.8]} 12...
Bxc3 {[%clk 0:02:37.3]} 13. bxc3 {[%clk 0:02:29.4]} 13... Nb6 {[%clk 0:02:37.8]}
14. c4 {[%clk 0:01:52.1]} 14... Nxc4 {[%clk 0:02:36]} 15. Bxc4 {[%clk
0:01:50.6]} 15... dxc4 {[%clk 0:02:36.9]} 16. Qxc4 {[%clk 0:01:51.2]} 16... c6
{[%clk 0:02:34.4]} 17. Rfd1 {[%clk 0:01:44.7]} 17... Be6 {[%clk 0:02:30.7]} 18.
Qc2 {[%clk 0:01:44]} 18... Bd5 {[%clk 0:02:29.5]} 19. a4 {[%clk 0:01:34.5]}
19... Rc8 {[%clk 0:02:20.9]} 20. Rab1 {[%clk 0:01:31.8]} 20... Qe7 {[%clk
0:02:18.3]} 21. Rb2 {[%clk 0:01:16.4]} 21... b6 {[%clk 0:02:14.7]} 22. Nd2
{[%clk 0:01:07.7]} 22... Nxd2 {[%clk 0:02:09.9]} 23. Qxd2 {[%clk 0:01:05.9]}
23... Qe4 {[%clk 0:02:08.7]} 24. f3 {[%clk 0:00:43.8]} 24... Qxe3+ {[%clk
0:02:08.5]} 25. Bf2 {[%clk 0:00:43.2]} 25... Qxd2 {[%clk 0:02:04.3]} 26. Rdxd2
{[%clk 0:00:43]} 26... Re6 {[%clk 0:01:59.7]} 27. a5 {[%clk 0:00:41.1]} 27... b5
{[%clk 0:01:58.6]} 28. Bg3 {[%clk 0:00:31.4]} 28... Rce8 {[%clk 0:01:56.7]} 29.
Kf2 {[%clk 0:00:29.1]} 29... Bc4 {[%clk 0:01:52.8]} 30. Rbc2 {[%clk 0:00:15.1]}
30... f5 {[%clk 0:01:52.2]} 31. Be5 {[%clk 0:00:13.8]} 31... a6 {[%clk
0:01:43.7]} 32. Rb2 {[%clk 0:00:13.8]} 32... f4 {[%clk 0:01:42.5]} 33. Rbc2
{[%clk 0:00:13.6]} 33... Kf7 {[%clk 0:01:40]} 34. Rb2 {[%clk 0:00:13.8]} 34...
Kg6 {[%clk 0:01:40.5]} 35. Rbc2 {[%clk 0:00:14.1]} 35... Kf5 {[%clk 0:01:40.9]}
36. Rb2 {[%clk 0:00:14]} 36... h5 {[%clk 0:01:37]} 37. Rbc2 {[%clk 0:00:14]}
37... g4 {[%clk 0:01:37.4]} 38. Rb2 {[%clk 0:00:14]} 38... Rg8 {[%clk
0:01:31.8]} 39. Rbc2 {[%clk 0:00:11.6]} 39... gxf3 {[%clk 0:01:31.6]} 40. gxf3
{[%clk 0:00:10.7]} 40... Reg6 {[%clk 0:01:31.6]} 41. Ke1 {[%clk 0:00:01.5]}
41... Rg1+ {[%clk 0:01:30.7]} 42. Kf2 {[%clk 0:00:01.5]} 42... R8g2# {[%clk
0:01:30.9]} 0-1

[Event "Late-Titled-Tuesday-Blitz-January-30-2024"]
[Site "Chess.com"]
[Date "2024.01.30"]
[Round "4"]
[White "Byniolus"]
[Black "BilodeauA"]
[Result "0-1"]
[WhiteElo "2848"]
[BlackElo "3029"]
[TimeControl "180+1"]
[EndTime "14:38:00 PST"]
[Termination "BilodeauA won on time"]

1. d4 {[%clk 0:03:00.9]} 1... d5 {[%clk 0:03:00]} 2. Nf3 {[%clk 0:03:00.8]} 2...
Nf6 {[%clk 0:02:59.9]} 3. Bf4 {[%clk 0:03:00.9]} 3... e6 {[%clk 0:02:58.7]} 4.
e3 {[%clk 0:03:00.3]} 4... Bd6 {[%clk 0:02:58.7]} 5. Bg3 {[%clk 0:03:00.2]} 5...
Nc6 {[%clk 0:02:56.8]} 6. Nbd2 {[%clk 0:03:00.1]} 6... Ne7 {[%clk 0:02:57.2]} 7.
Bd3 {[%clk 0:02:59.5]} 7... O-O {[%clk 0:02:54.6]} 8. c4 {[%clk 0:02:54.8]} 8...
c5 {[%clk 0:02:42.3]} 9. dxc5 {[%clk 0:02:44]} 9... Bxc5 {[%clk 0:02:42.6]} 10.
O-O {[%clk 0:02:43]} 10... b6 {[%clk 0:02:39]} 11. Nb3 {[%clk 0:02:18]} 11...
Bd6 {[%clk 0:02:27.2]} 12. Ne5 {[%clk 0:01:59.2]} 12... Bb7 {[%clk 0:02:25.9]}
13. Rc1 {[%clk 0:01:58.9]} 13... Rc8 {[%clk 0:02:14.2]} 14. Qe2 {[%clk
0:01:58.2]} 14... Nf5 {[%clk 0:01:47.8]} 15. Bxf5 {[%clk 0:01:34.6]} 15... exf5
{[%clk 0:01:48.7]} 16. cxd5 {[%clk 0:01:32.2]} 16... Bxd5 {[%clk 0:01:48.9]} 17.
Nxf7 {[%clk 0:00:52.9]} 17... Rxf7 {[%clk 0:01:06.5]} 18. Rxc8 {[%clk 0:00:52]}
18... Qxc8 {[%clk 0:01:07.1]} 19. Bxd6 {[%clk 0:00:52.5]} 19... Qe6 {[%clk
0:01:05.4]} 20. Bg3 {[%clk 0:00:27.1]} 20... Bc4 {[%clk 0:01:01.8]} 21. Qd1
{[%clk 0:00:16.4]} 21... Bxf1 {[%clk 0:00:58.2]} 22. Qxf1 {[%clk 0:00:17.3]}
22... Ne4 {[%clk 0:00:53.7]} 23. Bf4 {[%clk 0:00:08.7]} 23... g5 {[%clk
0:00:50.8]} 24. Bb8 {[%clk 0:00:05.9]} 24... Qd5 {[%clk 0:00:37.4]} 25. h4
{[%clk 0:00:03.3]} 25... gxh4 {[%clk 0:00:33.4]} 26. Nd4 {[%clk 0:00:03]} 26...
f4 {[%clk 0:00:32.9]} 0-1

[Event "Late-Titled-Tuesday-Blitz-January-30-2024"]
[Site "Chess.com"]
[Date "2024.01.30"]
[Round "4"]
[White "GaiozNigalidze"]
[Black "Cambek64"]
[Result "0-1"]
[WhiteElo "2693"]
[BlackElo "2530"]
[TimeControl "180+1"]
[EndTime "14:38:00 PST"]
[Termination "Cambek64 won on time"]

1. d4 {[%clk 0:03:00.9]} 1... c5 {[%clk 0:02:54.6]} 2. d5 {[%clk 0:03:00.8]}
2... e5 {[%clk 0:02:48.8]} 3. Nc3 {[%clk 0:02:59.7]} 3... d6 {[%clk 0:02:49.3]}
4. g3 {[%clk 0:02:57.7]} 4... g6 {[%clk 0:02:47.3]} 5. Bg2 {[%clk 0:02:57.1]}
5... Bg7 {[%clk 0:02:47.8]} 6. e4 {[%clk 0:02:55.2]} 6... f5 {[%clk 0:02:47.4]}
7. exf5 {[%clk 0:02:55]} 7... Bxf5 {[%clk 0:02:45.5]} 8. Nf3 {[%clk 0:02:53.3]}
8... Nf6 {[%clk 0:02:44.7]} 9. Ng5 {[%clk 0:02:45.8]} 9... O-O {[%clk
0:02:43.6]} 10. Ne6 {[%clk 0:02:33.9]} 10... Bxe6 {[%clk 0:02:42]} 11. dxe6
{[%clk 0:02:34.8]} 11... Nc6 {[%clk 0:02:41.2]} 12. O-O {[%clk 0:02:03.1]} 12...
Qe7 {[%clk 0:02:36.5]} 13. Nd5 {[%clk 0:02:01]} 13... Nxd5 {[%clk 0:02:36.7]}
14. Bxd5 {[%clk 0:01:57.4]} 14... Rae8 {[%clk 0:02:32]} 15. c3 {[%clk
0:01:28.6]} 15... Nd8 {[%clk 0:02:28.7]} 16. Bg5 {[%clk 0:01:18.5]} 16... Bf6
{[%clk 0:02:26.3]} 17. Bh6 {[%clk 0:01:16.9]} 17... Bg7 {[%clk 0:02:25.3]} 18.
Bg5 {[%clk 0:01:15]} 18... Bf6 {[%clk 0:02:22]} 19. Bxf6 {[%clk 0:00:52.2]}
19... Rxf6 {[%clk 0:02:20]} 20. Qb3 {[%clk 0:00:50.8]} 20... Nxe6 {[%clk
0:02:16.8]} 21. f4 {[%clk 0:00:34.4]} 21... exf4 {[%clk 0:02:10.6]} 22. Rae1
{[%clk 0:00:34]} 22... Kg7 {[%clk 0:02:10.1]} 23. gxf4 {[%clk 0:00:27]} 23... b6
{[%clk 0:02:00.6]} 24. Qc4 {[%clk 0:00:24.2]} 24... Qd7 {[%clk 0:01:59.4]} 25.
f5 {[%clk 0:00:12.8]} 25... gxf5 {[%clk 0:01:55.1]} 26. Kh1 {[%clk 0:00:12.5]}
26... Nc7 {[%clk 0:01:52.9]} 27. Bf3 {[%clk 0:00:10.1]} 27... d5 {[%clk
0:01:38.7]} 28. Qh4 {[%clk 0:00:09.1]} 28... Rxe1 {[%clk 0:01:29.1]} 29. Rxe1
{[%clk 0:00:09.1]} 29... Ne6 {[%clk 0:01:29.3]} 30. Bh5 {[%clk 0:00:08.7]} 30...
h6 {[%clk 0:01:27.1]} 31. Qg3+ {[%clk 0:00:07.6]} 31... Kh7 {[%clk 0:01:19.2]}
32. Rg1 {[%clk 0:00:05.7]} 32... Ng5 {[%clk 0:01:10.6]} 33. Qe5 {[%clk
0:00:03.3]} 33... Qd6 {[%clk 0:01:01.7]} 34. Qe8 {[%clk 0:00:01.6]} 34... d4
{[%clk 0:01:01]} 0-1

[Event "Late-Titled-Tuesday-Blitz-January-30-2024"]
[Site "Chess.com"]
[Date "2024.01.30"]
[Round "4"]
[White "vladoboch"]
[Black "icychess54"]
[Result "1-0"]
[WhiteElo "2473"]
[BlackElo "2239"]
[TimeControl "180+1"]
[EndTime "14:38:02 PST"]
[Termination "vladoboch won on time"]

1. e4 {[%clk 0:03:00.9]} 1... c5 {[%clk 0:02:59.5]} 2. Nf3 {[%clk 0:03:00.6]}
2... d6 {[%clk 0:03:00]} 3. d4 {[%clk 0:03:00.9]} 3... cxd4 {[%clk 0:03:00.9]}
4. Nxd4 {[%clk 0:03:01.5]} 4... Nc6 {[%clk 0:03:00.2]} 5. c4 {[%clk 0:02:57.1]}
5... Nf6 {[%clk 0:03:00.5]} 6. Nc3 {[%clk 0:02:57.1]} 6... e6 {[%clk 0:03:00.5]}
7. Be3 {[%clk 0:02:56.1]} 7... Be7 {[%clk 0:03:00.7]} 8. Be2 {[%clk 0:02:56.3]}
8... a6 {[%clk 0:03:01.2]} 9. O-O {[%clk 0:02:56.4]} 9... O-O {[%clk 0:03:01.8]}
10. a3 {[%clk 0:02:56.6]} 10... Qc7 {[%clk 0:03:01.5]} 11. Rc1 {[%clk
0:02:56.9]} 11... Rd8 {[%clk 0:02:59.1]} 12. Nd5 {[%clk 0:02:52.7]} 12... exd5
{[%clk 0:02:50.2]} 13. cxd5 {[%clk 0:02:53.6]} 13... Bd7 {[%clk 0:02:44.2]} 14.
dxc6 {[%clk 0:02:52.9]} 14... bxc6 {[%clk 0:02:44.2]} 15. Qc2 {[%clk 0:02:32.4]}
15... Rab8 {[%clk 0:02:09.7]} 16. b4 {[%clk 0:02:20.7]} 16... a5 {[%clk
0:01:53.8]} 17. b5 {[%clk 0:01:32]} 17... c5 {[%clk 0:01:35.9]} 18. a4 {[%clk
0:01:29.1]} 18... Qb7 {[%clk 0:01:28.9]} 19. Nf5 {[%clk 0:01:28.6]} 19... Bxf5
{[%clk 0:01:24.1]} 20. exf5 {[%clk 0:01:28.8]} 20... d5 {[%clk 0:01:09.2]} 21.
Bf3 {[%clk 0:01:08]} 21... Qd7 {[%clk 0:00:51.9]} 22. Rfe1 {[%clk 0:01:02]}
22... d4 {[%clk 0:00:48.8]} 23. Bf4 {[%clk 0:01:02.2]} 23... Bd6 {[%clk
0:00:38.2]} 24. Bc6 {[%clk 0:01:00.8]} 24... Qc7 {[%clk 0:00:17.5]} 25. Bxd6
{[%clk 0:01:01.1]} 25... Qxd6 {[%clk 0:00:16.6]} 26. Qxc5 {[%clk 0:00:57.8]}
26... Qf4 {[%clk 0:00:14.6]} 27. g3 {[%clk 0:00:49]} 27... Qh6 {[%clk
0:00:10.7]} 28. Rcd1 {[%clk 0:00:46.4]} 28... d3 {[%clk 0:00:09]} 29. Qe3 {[%clk
0:00:41.2]} 29... Qh5 {[%clk 0:00:06.5]} 30. Rxd3 {[%clk 0:00:37.4]} 1-0

[Event "Late-Titled-Tuesday-Blitz-January-30-2024"]
[Site "Chess.com"]
[Date "2024.01.30"]
[Round "4"]
[White "Schattman"]
[Black "Bala-Afiada"]
[Result "1-0"]
[WhiteElo "2452"]
[BlackElo "2033"]
[TimeControl "180+1"]
[EndTime "14:38:03 PST"]
[Termination "Schattman won by resignation"]

1. f4 {[%clk 0:03:00.9]} 1... e5 {[%clk 0:02:54.6]} 2. fxe5 {[%clk 0:03:00.5]}
2... d6 {[%clk 0:02:55.2]} 3. exd6 {[%clk 0:03:01.3]} 3... Bxd6 {[%clk
0:02:55.8]} 4. Nf3 {[%clk 0:03:01.2]} 4... c6 {[%clk 0:02:55.9]} 5. d4 {[%clk
0:02:57.8]} 5... Qc7 {[%clk 0:02:56.1]} 6. Bg5 {[%clk 0:02:49.1]} 6... Bg4
{[%clk 0:02:49.8]} 7. Nc3 {[%clk 0:02:44.1]} 7... Bxf3 {[%clk 0:02:49.6]} 8.
exf3 {[%clk 0:02:37.8]} 8... Bg3+ {[%clk 0:02:49.1]} 9. Kd2 {[%clk 0:02:21.6]}
9... Bf4+ {[%clk 0:02:43.6]} 10. Bxf4 {[%clk 0:02:20.9]} 10... Qxf4+ {[%clk
0:02:44.5]} 11. Kd3 {[%clk 0:02:18.5]} 11... Qf5+ {[%clk 0:02:13.6]} 12. Kd2
{[%clk 0:02:10.3]} 12... Ne7 {[%clk 0:02:10.8]} 13. Qe1 {[%clk 0:02:02.3]} 13...
Qf4+ {[%clk 0:02:08.6]} 14. Qe3 {[%clk 0:02:01.7]} 14... Qxe3+ {[%clk
0:02:06.8]} 15. Kxe3 {[%clk 0:02:01.5]} 15... O-O {[%clk 0:02:06.4]} 16. Bd3
{[%clk 0:01:55.3]} 16... Re8 {[%clk 0:02:06.1]} 17. Kf2 {[%clk 0:01:50.6]} 17...
Nd7 {[%clk 0:02:02]} 18. Rhe1 {[%clk 0:01:46.1]} 18... Nb6 {[%clk 0:02:01.1]}
19. Ne2 {[%clk 0:01:32]} 19... Ned5 {[%clk 0:01:57]} 20. c3 {[%clk 0:01:23.6]}
20... Re7 {[%clk 0:01:52.9]} 21. Ng3 {[%clk 0:01:16]} 21... Rae8 {[%clk
0:01:52.6]} 22. Rxe7 {[%clk 0:01:13.6]} 22... Rxe7 {[%clk 0:01:53.5]} 23. Re1
{[%clk 0:01:13.2]} 23... Rxe1 {[%clk 0:01:51.5]} 24. Kxe1 {[%clk 0:01:12.8]}
24... Nf4 {[%clk 0:01:52.4]} 25. Bf1 {[%clk 0:01:12.7]} 25... Na4 {[%clk
0:01:44.2]} 26. Nf5 {[%clk 0:00:53.1]} 26... Nxb2 {[%clk 0:01:41.3]} 27. Nd6
{[%clk 0:00:52.7]} 27... b6 {[%clk 0:01:37.4]} 28. Nc8 {[%clk 0:00:48.2]} 28...
Na4 {[%clk 0:01:09]} 29. Kd2 {[%clk 0:00:38]} 29... a5 {[%clk 0:01:02.8]} 30.
Ne7+ {[%clk 0:00:36.4]} 30... Kf8 {[%clk 0:01:02]} 31. Nxc6 {[%clk 0:00:36.5]}
31... Nd5 {[%clk 0:00:56.2]} 32. c4 {[%clk 0:00:29.1]} 32... Nc7 {[%clk
0:00:51.6]} 33. Kc2 {[%clk 0:00:26.3]} 33... Ke8 {[%clk 0:00:32]} 34. Kb3 {[%clk
0:00:26]} 34... Kd7 {[%clk 0:00:32.5]} 35. Ne5+ {[%clk 0:00:25.5]} 35... Ke6
{[%clk 0:00:31.8]} 36. Kxa4 {[%clk 0:00:25.5]} 1-0

[Event "Late-Titled-Tuesday-Blitz-January-30-2024"]
[Site "Chess.com"]
[Date "2024.01.30"]
[Round "4"]
[White "ElephantChessGenius"]
[Black "kikoveiga"]
[Result "0-1"]
[WhiteElo "2247"]
[BlackElo "2520"]
[TimeControl "180+1"]
[EndTime "14:38:03 PST"]
[Termination "kikoveiga won on time"]

1. e4 {[%clk 0:02:56.2]} 1... Nc6 {[%clk 0:02:57.6]} 2. d4 {[%clk 0:02:49.4]}
2... d5 {[%clk 0:02:57.2]} 3. e5 {[%clk 0:02:48.2]} 3... Bf5 {[%clk 0:02:56.6]}
4. c3 {[%clk 0:02:45.8]} 4... e6 {[%clk 0:02:56.5]} 5. h4 {[%clk 0:02:37.1]}
5... h5 {[%clk 0:02:45.8]} 6. Nf3 {[%clk 0:02:30.1]} 6... Be7 {[%clk 0:02:44.9]}
7. Be2 {[%clk 0:02:27]} 7... Nh6 {[%clk 0:02:44.8]} 8. Qb3 {[%clk 0:02:26.1]}
8... Qd7 {[%clk 0:02:21.2]} 9. Na3 {[%clk 0:02:15.8]} 9... Na5 {[%clk 0:02:17]}
10. Qd1 {[%clk 0:02:12.2]} 10... Bxa3 {[%clk 0:02:02.6]} 11. bxa3 {[%clk
0:02:10.6]} 11... Nc4 {[%clk 0:02:02.3]} 12. a4 {[%clk 0:02:05.1]} 12... Ng4
{[%clk 0:01:57.4]} 13. Qb3 {[%clk 0:02:01.8]} 13... Na5 {[%clk 0:01:41.1]} 14.
Qb4 {[%clk 0:02:00]} 14... b6 {[%clk 0:01:40]} 15. Ba3 {[%clk 0:01:55.5]} 15...
f6 {[%clk 0:01:28.4]} 16. Bb5 {[%clk 0:01:53.3]} 16... c6 {[%clk 0:01:28]} 17.
Be2 {[%clk 0:01:48.8]} 17... Kf7 {[%clk 0:01:25.3]} 18. Rd1 {[%clk 0:01:32.5]}
18... Rac8 {[%clk 0:01:22]} 19. Bc1 {[%clk 0:01:21.6]} 19... c5 {[%clk
0:01:20.6]} 20. dxc5 {[%clk 0:01:18.8]} 20... Rxc5 {[%clk 0:01:21.5]} 21. exf6
{[%clk 0:01:15.4]} 21... gxf6 {[%clk 0:01:21.1]} 22. Nd4 {[%clk 0:01:13.7]}
22... Nc6 {[%clk 0:01:17.8]} 23. Nxc6 {[%clk 0:00:52.5]} 23... Qxc6 {[%clk
0:01:16]} 24. Bb2 {[%clk 0:00:51.7]} 24... Bc2 {[%clk 0:01:08.8]} 25. Rd2 {[%clk
0:00:40.9]} 25... Qxa4 {[%clk 0:01:08.3]} 26. Qxa4 {[%clk 0:00:23.7]} 26... Bxa4
{[%clk 0:01:06.5]} 27. Rd4 {[%clk 0:00:14.3]} 27... Bd7 {[%clk 0:00:59.5]} 28.
Bxg4 {[%clk 0:00:10.8]} 28... hxg4 {[%clk 0:01:00.4]} 29. Rxg4 {[%clk
0:00:10.8]} 29... e5 {[%clk 0:01:00.7]} 30. Rg3 {[%clk 0:00:10.1]} 30... Rh5
{[%clk 0:00:59.7]} 31. Kd2 {[%clk 0:00:08.7]} 31... Bf5 {[%clk 0:00:59]} 32. f3
{[%clk 0:00:07.4]} 32... d4 {[%clk 0:00:58.9]} 33. Rc1 {[%clk 0:00:03.3]} 33...
dxc3+ {[%clk 0:00:55.4]} 34. Rxc3 {[%clk 0:00:02.5]} 34... Rxc3 {[%clk
0:00:55.6]} 35. Bxc3 {[%clk 0:00:03.1]} 35... Rxh4 {[%clk 0:00:56.2]} 36. Ke3
{[%clk 0:00:02.8]} 36... Ra4 {[%clk 0:00:55.3]} 37. Rh3 {[%clk 0:00:01.5]} 37...
Bxh3 {[%clk 0:00:55]} 38. gxh3 {[%clk 0:00:02.1]} 38... Rxa2 {[%clk 0:00:55.6]}
39. h4 {[%clk 0:00:02.7]} 39... Rh2 {[%clk 0:00:55.7]} 0-1

[Event "Late-Titled-Tuesday-Blitz-January-30-2024"]
[Site "Chess.com"]
[Date "2024.01.30"]
[Round "4"]
[White "emeli_chess"]
[Black "manitodeplomo"]
[Result "0-1"]
[WhiteElo "2489"]
[BlackElo "2690"]
[TimeControl "180+1"]
[EndTime "14:38:05 PST"]
[Termination "manitodeplomo won by resignation"]

1. d4 {[%clk 0:03:00.9]} 1... g6 {[%clk 0:02:58.1]} 2. c4 {[%clk 0:03:01]} 2...
Bg7 {[%clk 0:02:58.5]} 3. Nc3 {[%clk 0:03:01.2]} 3... d6 {[%clk 0:02:58.1]} 4.
e4 {[%clk 0:03:01]} 4... Nf6 {[%clk 0:02:58.5]} 5. f3 {[%clk 0:03:00]} 5... O-O
{[%clk 0:02:58.3]} 6. Be3 {[%clk 0:03:00.2]} 6... c5 {[%clk 0:02:58.8]} 7. Nge2
{[%clk 0:02:59.4]} 7... Nc6 {[%clk 0:02:58]} 8. d5 {[%clk 0:02:59.7]} 8... Ne5
{[%clk 0:02:57.1]} 9. Ng3 {[%clk 0:02:59.9]} 9... e6 {[%clk 0:02:55.3]} 10. Be2
{[%clk 0:02:59.6]} 10... exd5 {[%clk 0:02:54.8]} 11. cxd5 {[%clk 0:02:59.9]}
11... a6 {[%clk 0:02:52.5]} 12. a4 {[%clk 0:02:59.2]} 12... h5 {[%clk 0:02:51]}
13. O-O {[%clk 0:02:58.1]} 13... h4 {[%clk 0:02:50.8]} 14. Nh1 {[%clk
0:02:57.9]} 14... h3 {[%clk 0:02:51.4]} 15. g3 {[%clk 0:02:57.6]} 15... Bd7
{[%clk 0:02:50.2]} 16. Nf2 {[%clk 0:02:54.8]} 16... b5 {[%clk 0:02:46.8]} 17. f4
{[%clk 0:02:53.7]} 17... Nc4 {[%clk 0:02:45.4]} 18. Bxc4 {[%clk 0:02:53]} 18...
bxc4 {[%clk 0:02:46.3]} 19. e5 {[%clk 0:02:42.5]} 19... Ne8 {[%clk 0:02:28.6]}
20. Nfe4 {[%clk 0:02:28.4]} 20... Bf5 {[%clk 0:02:20.3]} 21. g4 {[%clk
0:02:10.9]} 21... Bxe4 {[%clk 0:02:16.6]} 22. Nxe4 {[%clk 0:02:10.8]} 22... Rb8
{[%clk 0:02:17.5]} 23. Qd2 {[%clk 0:01:14.1]} 23... Rb3 {[%clk 0:02:09.9]} 24.
Qf2 {[%clk 0:01:04.3]} 24... Qa8 {[%clk 0:01:41.3]} 25. Rad1 {[%clk 0:00:48]}
25... Rd3 {[%clk 0:01:39.2]} 26. exd6 {[%clk 0:00:36.1]} 26... Qxd5 {[%clk
0:01:36.2]} 27. Rxd3 {[%clk 0:00:30.8]} 27... cxd3 {[%clk 0:01:37.1]} 28. d7
{[%clk 0:00:28.9]} 28... Qxe4 {[%clk 0:01:22.6]} 29. d8=Q {[%clk 0:00:26.9]}
29... Nf6 {[%clk 0:01:15.9]} 30. Qc7 {[%clk 0:00:18.4]} 30... Nxg4 {[%clk
0:01:14.5]} 31. Qf3 {[%clk 0:00:18.6]} 31... Qxe3+ {[%clk 0:00:57.7]} 32. Qxe3
{[%clk 0:00:17.5]} 32... Nxe3 {[%clk 0:00:58.6]} 33. Qd7 {[%clk 0:00:10.7]}
33... Bd4 {[%clk 0:00:56]} 34. Kf2 {[%clk 0:00:05.6]} 34... d2 {[%clk
0:00:53.1]} 35. Ke2 {[%clk 0:00:05.3]} 35... Nxf1 {[%clk 0:00:52.2]} 0-1

[Event "Late-Titled-Tuesday-Blitz-January-30-2024"]
[Site "Chess.com"]
[Date "2024.01.30"]
[Round "4"]
[White "AlleyOoper"]
[Black "Orest_Vovk"]
[Result "1-0"]
[WhiteElo "2662"]
[BlackElo "2500"]
[TimeControl "180+1"]
[EndTime "14:38:08 PST"]
[Termination "AlleyOoper won on time"]

1. d4 {[%clk 0:03:00]} 1... h6 {[%clk 0:02:59.3]} 2. Nc3 {[%clk 0:02:59.3]} 2...
g5 {[%clk 0:02:59.5]} 3. e4 {[%clk 0:02:59.8]} 3... Bg7 {[%clk 0:02:59.9]} 4. h4
{[%clk 0:03:00.1]} 4... c5 {[%clk 0:02:59.9]} 5. dxc5 {[%clk 0:02:56.4]} 5...
Bxc3+ {[%clk 0:02:55.8]} 6. bxc3 {[%clk 0:02:55.5]} 6... g4 {[%clk 0:02:39.1]}
7. Qxg4 {[%clk 0:02:50.4]} 7... Nf6 {[%clk 0:02:39.2]} 8. Qg7 {[%clk 0:02:47.1]}
8... Rg8 {[%clk 0:02:30]} 9. Qxh6 {[%clk 0:02:46.6]} 9... Qa5 {[%clk 0:02:28.4]}
10. Qe3 {[%clk 0:02:45.1]} 10... Nxe4 {[%clk 0:02:24.1]} 11. Ne2 {[%clk
0:02:22.7]} 11... Nxc5 {[%clk 0:02:19.6]} 12. h5 {[%clk 0:02:19.8]} 12... d6
{[%clk 0:02:03.6]} 13. h6 {[%clk 0:02:19.6]} 13... Nc6 {[%clk 0:01:54.8]} 14. h7
{[%clk 0:02:19.5]} 14... Rh8 {[%clk 0:01:54.9]} 15. Qg5 {[%clk 0:02:15.5]} 15...
Be6 {[%clk 0:01:50.4]} 16. Be3 {[%clk 0:02:05.7]} 16... Ne5 {[%clk 0:01:25.4]}
17. Rd1 {[%clk 0:01:46.7]} 17... f6 {[%clk 0:01:12.5]} 18. Qf4 {[%clk
0:01:27.1]} 18... Qxa2 {[%clk 0:00:47.4]} 19. Nd4 {[%clk 0:01:24]} 19... O-O-O
{[%clk 0:00:39.3]} 20. Nxe6 {[%clk 0:01:14.5]} 20... Qxe6 {[%clk 0:00:38.6]} 21.
g3 {[%clk 0:01:12.9]} 21... Kc7 {[%clk 0:00:27.3]} 22. Bg2 {[%clk 0:00:54.2]}
22... Qc4 {[%clk 0:00:12.6]} 23. Qxc4 {[%clk 0:00:47.5]} 23... Nxc4 {[%clk
0:00:13.5]} 24. Bxc5 {[%clk 0:00:40.1]} 24... dxc5 {[%clk 0:00:12.4]} 25. Rxd8
{[%clk 0:00:40.7]} 25... Kxd8 {[%clk 0:00:11.8]} 26. Bxb7 {[%clk 0:00:41.1]}
26... Nd6 {[%clk 0:00:10.8]} 27. Bd5 {[%clk 0:00:40.9]} 27... Ke8 {[%clk
0:00:08.6]} 28. Bg8 {[%clk 0:00:40.3]} 28... Kf8 {[%clk 0:00:03.7]} 29. Ke2
{[%clk 0:00:40.5]} 29... Nf7 {[%clk 0:00:02]} 30. Rb1 {[%clk 0:00:39.1]} 1-0